fUSD/lending_fUSD_20240929
["ID","MTS","AMOUNT","RATE_DAILY","PERIOD"]
[339464439,1727620328162,-500.0,0.00010999,2]
[339464440,1727620328171,-546.64,0.00010999,2]
[339464441,1727620328180,-500.0,0.00010999,2]
[339464442,1727620328189,-500.0,0.00010999,2]
[339464443,1727620328199,-546.64,0.00010999,2]
[339464444,1727620328207,-500.0,0.00010999,2]
[339464445,1727620328216,-546.64,0.00010999,2]
[339464446,1727620328226,-500.0,0.00010999,2]
[339464447,1727620328235,-500.0,0.00010999,2]
[339464448,1727620328244,-500.0,0.00010999,2]
[339464449,1727620328253,-546.64,0.00010999,2]
[339464450,1727620328262,-500.0,0.00010999,2]
[339464451,1727620328271,-500.0,0.00010999,2]
[339464452,1727620328281,-546.64,0.00010999,2]
[339464453,1727620328293,-500.0,0.00010999,2]
[339464454,1727620328302,-500.0,0.00010999,2]
[339464455,1727620328311,-546.64,0.00010999,2]
[339464456,1727620328321,-500.0,0.00010999,2]
[339464457,1727620328330,-500.0,0.00010999,2]
[339464458,1727620328339,-546.64,0.00010999,2]
[339464459,1727620328348,-500.0,0.00010999,2]
[339464460,1727620328358,-500.0,0.00010999,2]
[339464461,1727620328367,-546.64,0.00010999,2]
[339464462,1727620328376,-500.0,0.00010999,2]
[339464463,1727620328385,-500.0,0.00010999,2]
[339464464,1727620328395,-546.65761332,0.00010999,2]
[339464465,1727620328403,-500.0,0.00010999,2]
[339464466,1727620328413,-500.0,0.00010999,2]
[339464467,1727620328422,-500.0,0.00010999,2]
[339464468,1727620328432,-500.0,0.00010999,2]
[339464469,1727620328441,-500.0,0.00010999,2]
[339464470,1727620328451,-500.0,0.00010999,2]
[339464471,1727620328461,-471.59269796,0.00010999,2]
[339464472,1727620328470,-500.0,0.00010999,2]
[339464473,1727620328480,-500.0,0.00010999,2]
[339464474,1727620328489,-524.10270045,0.00010999,2]
[339464475,1727620328499,-500.0,0.00010999,2]
[339464476,1727620328508,-500.0,0.00010999,2]
[339464477,1727620328518,-500.0,0.00010999,2]
[339464478,1727620328527,-500.0,0.00010999,2]
[339464479,1727620328537,-500.0,0.00010999,2]
[339464480,1727620328548,-313.59072999,0.00010999,2]
[339464481,1727620328558,-554.82,0.00010999,2]
[339464482,1727620328568,-554.82,0.00010999,2]
[339464483,1727620328578,-915.86,0.00010999,2]
[339464484,1727620328587,-915.86,0.00010999,2]
[339464485,1727620328597,-554.82,0.00010999,2]
[339464486,1727620328607,-915.86,0.00010999,2]
[339464487,1727620328617,-915.86,0.00010999,2]
[339464488,1727620328626,-554.82,0.00010999,2]
[339464489,1727620328636,-915.86,0.00010999,2]
[339464490,1727620328646,-554.82,0.00010999,2]
[339464491,1727620328655,-915.86,0.00010999,2]
[339464492,1727620328665,-554.82,0.00010999,2]
[339464493,1727620328674,-554.82,0.00010999,2]
[339464494,1727620328683,-915.86,0.00010999,2]
[339464495,1727620328693,-554.82,0.00010999,2]
[339464496,1727620328703,-915.86,0.00010999,2]
[339464497,1727620328713,-554.82,0.00010999,2]
[339464498,1727620328723,-915.86,0.00010999,2]
[339464499,1727620328732,-554.86046266,0.00010999,2]
[339464500,1727620328741,-915.86,0.00010999,2]
[339464501,1727620328752,-915.86,0.00010999,2]
[339464502,1727620328761,-915.86,0.00010999,2]
[339464503,1727620328771,-915.86,0.00010999,2]
[339464504,1727620328780,-915.86,0.00010999,2]
[339464505,1727620328791,-915.94849082,0.00010999,2]
[339464506,1727620328800,-307421.62813308,0.00011,2]
[339464507,1727620328961,-33499.91300064,0.00011,2]
[339464508,1727620328972,-2992.78070083,0.00011,2]
[339464509,1727620328983,-341.88491473,0.00011,2]
[339464510,1727620328995,-1023.82317081,0.00011,2]
[339464511,1727620329006,-19069.05030202,0.00011,2]
[339464512,1727620329023,-522.01575214,0.00010997,2]
[339464513,1727620329034,-149.63424786,0.00010997,2]
[339464514,1727620329044,-1823.65117037,0.00011,2]
[339464515,1727620329056,-305.20127118,0.00011,2]
[339464516,1727620329067,-432.89653833,0.00011,2]
[339464517,1727620329078,-1117.28317245,0.00011,2]
[339464518,1727620329089,-4200.0,0.00011,2]
[339464519,1727620329099,-17459.92421963,0.00011,2]
[339464520,1727620329110,-412.1753019,0.00011,2]
[339464521,1727620329129,-363.33683964,0.00010996,2]
[339464522,1727620329140,-347.48316036,0.00010996,2]
[339464523,1727620329150,-1985241.4868752,0.00011,2]
[339464524,1727620329160,-2136.17160078,0.00011,2]
[339464525,1727620329178,-608.71372197,0.00010997,2]
[339464526,1727620329190,-636.87818,0.00010997,2]
[339464527,1727620329201,-28.91809803,0.00010997,2]
[339464528,1727620329210,-578.08568636,0.00011,2]
[339464529,1727620329223,-605.70812265,0.00011,2]
[339464530,1727620329235,-40007.47351251,0.00011,2]
[339464531,1727620329247,-2005.80185951,0.00011,2]
[339464532,1727620329258,-485.29999995,0.00011,2]
[339464533,1727620329270,-709.17,0.00011,2]
[339464534,1727620329282,-454.72444701,0.00011,2]
[339464535,1727620329306,-2122.01,0.00010995,2]
[339464536,1727620329316,-500.0,0.00010998,2]
[339464537,1727620329326,-1052.2043007,0.00011,2]
[339464538,1727620329338,-671.32315737,0.00011,2]
[339464539,1727620329349,-534.30898562,0.00011,2]
[339464540,1727620329360,-827.30933768,0.00011,2]
[339464541,1727620329371,-471.44131326,0.00011,2]
[339464542,1727620329383,-4445.23740939,0.00011,2]
[339464543,1727620329394,-4697.08922901,0.00011,2]
[339464544,1727620329412,-500.0,0.00010982,2]
[339464545,1727620329421,-408.00465528,0.00011,2]
[339464546,1727620329454,-671.65,0.00010997,2]
[339464547,1727620329464,-710.82,0.00010997,2]
[339464548,1727620329474,-1371.84674355,0.00011,2]
[339464549,1727620330170,-500.0,0.00010984,2]
[339464550,1727620330185,-511.46148581,0.00010985,2]
[339464551,1727620330200,-500.0,0.00010985,2]
[339464552,1727620330214,-500.0,0.00010985,2]
[339464553,1727620330229,-500.0,0.00010986,2]
[339464554,1727620330244,-500.0,0.00010995,2]
[339464555,1727620330259,-201.54381897,0.00010996,2]
[339464556,1727620330274,-1920.46618103,0.00010996,2]
[339464557,1727620330284,-714.56,0.00010996,2]
[339464558,1727620330295,-714.56,0.00010996,2]
[339464559,1727620330305,-331.22402629,0.00010996,2]
[339464560,1727620330315,-714.56,0.00010996,2]
[339464561,1727620330324,-500.0,0.00010996,2]
[339464562,1727620330334,-500.0,0.00010996,2]
[339464563,1727620330343,-2122.01,0.00010996,2]
[339464564,1727620330353,-500.0,0.00010996,2]
[339464565,1727620330363,-500.0,0.00010996,2]
[339464566,1727620330374,-2122.01,0.00010996,2]
[339464567,1727620330383,-500.0,0.00010996,2]
[339464568,1727620330393,-500.0,0.00010996,2]
[339464569,1727620330403,-2122.01,0.00010996,2]
[339464570,1727620330412,-2122.01,0.00010996,2]
[339464571,1727620330422,-500.0,0.00010996,2]
[339464572,1727620330432,-710.82,0.00010997,2]
[339464573,1727620330442,-710.82,0.00010997,2]
[339464574,1727620330452,-710.82,0.00010997,2]
[339464575,1727620330463,-714.56,0.00010997,2]
[339464576,1727620330474,-500.0,0.00010997,2]
[339464577,1727620330483,-710.82,0.00010997,2]
[339464578,1727620330493,-714.56,0.00010997,2]
[339464579,1727620330503,-500.0,0.00010997,2]
[339464580,1727620330513,-710.82,0.00010997,2]
[339464581,1727620330523,-500.0,0.00010997,2]
[339464582,1727620330532,-714.56,0.00010997,2]
[339464583,1727620330544,-500.0,0.00010997,2]
[339464584,1727620330554,-710.82,0.00010997,2]
[339464585,1727620330563,-500.0,0.00010997,2]
[339464586,1727620330574,-500.0,0.00010997,2]
[339464587,1727620330583,-714.56,0.00010997,2]
[339464588,1727620330593,-2122.01,0.00010997,2]
[339464589,1727620330603,-500.0,0.00010997,2]
[339464590,1727620330612,-500.0,0.00010997,2]
[339464591,1727620330622,-2122.01,0.00010997,2]
[339464592,1727620330631,-500.0,0.00010997,2]
[339464593,1727620330641,-714.56,0.00010997,2]
[339464594,1727620330651,-500.0,0.00010997,2]
[339464595,1727620330660,-500.0,0.00010997,2]
[339464596,1727620330670,-1274.51,0.00010998,2]
[339464597,1727620330680,-500.0,0.00010998,2]
[339464598,1727620330690,-671.65,0.00010998,2]
[339464599,1727620330700,-1274.51,0.00010998,2]
[339464600,1727620330711,-671.65,0.00010998,2]
[339464601,1727620330720,-1274.51,0.00010998,2]
[339464602,1727620330730,-1274.51,0.00010998,2]
[339464603,1727620330740,-1274.51,0.00010998,2]
[339464604,1727620330750,-1274.51,0.00010998,2]
[339464605,1727620330759,-710.82,0.00010998,2]
[339464606,1727620330771,-1274.51,0.00010998,2]
[339464607,1727620330780,-710.82,0.00010998,2]
[339464608,1727620330791,-500.0,0.00010999,2]
[339464609,1727620330801,-671.65,0.00010999,2]
[339464610,1727620330811,-500.0,0.00010999,2]
[339464611,1727620330823,-500.0,0.00010999,2]
[339464612,1727620330832,-671.65,0.00010999,2]
[339464613,1727620330842,-671.65,0.00010999,2]
[339464614,1727620330852,-500.0,0.00010999,2]
[339464615,1727620330862,-643.92,0.00010999,2]
[339464616,1727620330874,-671.65,0.00010999,2]
[339464617,1727620330883,-671.65,0.00010999,2]
[339464618,1727620330893,-1274.51,0.00010999,2]
[339464619,1727620330902,-15879.4765203,0.00011,2]
[339464620,1727620330916,-329.20700671,0.00011,2]
[339464621,1727620330928,-1904.96994,0.00011,2]
[339464622,1727620330940,-5771.89169257,0.00011,2]
[339464623,1727620330953,-42662.56565596,0.00011,2]
[339464624,1727620331486,-1140.97488748,0.00011,2]
[339464625,1727620331507,-5942.42976688,0.00011,2]
[339464626,1727620331528,-42131.55046532,0.00011,2]
[339464627,1727620331540,-542.79318473,0.00011,2]
[339464628,1727620331552,-1373.16223695,0.00011,2]
[339464629,1727620331576,-513.5793435,0.00010997,2]
[339464630,1727620331587,-1608.4306565,0.00010997,2]
[339464631,1727620331597,-671.65,0.00010999,2]
[339464632,1727620331606,-11935.77739468,0.00011,2]
[339464633,1727620331618,-2701.23101814,0.00011,2]
[339464634,1727620331629,-5164.28147376,0.00011,2]
[339464635,1727620331640,-1675.74849414,0.00011,2]
[339464636,1727620331651,-189480.98509995,0.00011,2]
[339464637,1727620331662,-3031.86817983,0.00011,2]
[339464638,1727620331673,-858.99079704,0.00011,2]
[339464639,1727620331684,-2034.76206701,0.00011,2]
[339464640,1727620331695,-8694.57112734,0.00011,2]
[339464641,1727620331706,-3107.94503315,0.00011,2]
[339464642,1727620331717,-409.86,0.00011,2]
[339464643,1727620331728,-16344.51668327,0.00011,2]
[339464644,1727620331739,-422.91126348,0.00011,2]
[339464645,1727620331750,-547.44,0.00011,2]
[339464646,1727620331761,-1973.60967681,0.00011,2]
[339464647,1727620331772,-319.0,0.00011,2]
[339464648,1727620331783,-268.25,0.00011,2]
[339464649,1727620331794,-299.07844765,0.00011,2]
[339464650,1727620331812,-500.0,0.00010998,2]
[339464651,1727620331821,-4404.9682,0.00011,2]
[339464652,1727620331832,-17061.62315174,0.00011,2]
[339464653,1727620331843,-4506.63722945,0.00011,2]
[339464654,1727620331854,-544.14569313,0.00011,2]
[339464655,1727620331891,-500.0,0.00010997,2]
[339464656,1727620331901,-274.59705695,0.00010997,2]
[339464657,1727620331913,-439.96294305,0.00010997,2]
[339464658,1727620331923,-710.82,0.00010998,2]
[339464659,1727620331932,-57.17259835,0.00011,2]
[339464660,1727620331943,-70482.63596456,0.00011,2]
[339464661,1727620331954,-8385.9918445,0.00011,2]
[339464662,1727620331965,-405.8537147,0.00011,2]
[339464663,1727620331976,-22579.57251968,0.00011,2]
[339464664,1727620331987,-9819.1909422,0.00011,2]
[339464665,1727620331998,-1626.60634085,0.00011,2]
[339464666,1727620332009,-1041.98334023,0.00011,2]
[339464667,1727620332020,-2768.85844058,0.00011,2]
[339464668,1727620332031,-1033.35696431,0.00011,2]
[339464669,1727620332044,-2461.2845883,0.00011,2]
[339464670,1727620332072,-1089.88117537,0.00010899,2]
[339464671,1727620332083,-1744.32203037,0.00010899,2]
[339464672,1727620332096,-417.95823573,0.00010899,2]
[339464673,1727620332107,-1832.91532727,0.00010899,2]
[339464674,1727620332116,-500.0,0.00010998,2]
[339464675,1727620332125,-1274.51,0.00010999,2]
[339464676,1727620332134,-20.14687327,0.00011,2]
[339464677,1727620332145,-430.72220257,0.00011,2]
[339464678,1727620332155,-2372.81520537,0.00011,2]
[339464679,1727620332168,-357.56409185,0.00011,2]
[339464680,1727620332179,-5210.14308199,0.00011,2]
[339464681,1727620332191,-442.82396974,0.00011,2]
[339464682,1727620332204,-1318.46092399,0.00011,2]
[339464683,1727620332216,-147799.02933252,0.00011,2]
[339464684,1727620332227,-8843.92475302,0.00011,2]
[339464685,1727620332239,-572.08599567,0.00011,2]
[339464686,1727620332249,-1217.64466643,0.00011,2]
[339464687,1727620332263,-2836.89857251,0.00011,2]
[339464688,1727620332274,-449.81849419,0.00011,2]
[339464689,1727620358859,150.0,9.917e-05,4]
[339464691,1727620606520,1232.9,0.00021,60]
[339464692,1727620836906,157.54,9.589e-05,2]
[339464693,1727620858264,511.93,8.219e-05,2]
[339464697,1727621103229,184.54415172,9.888e-05,2]
[339464698,1727621104558,248.41098926,9.888e-05,2]
[339464699,1727621235953,183.2,9.888e-05,2]
[339464713,1727621431504,-250.0,9.903e-05,2]
[339464714,1727621431513,-200.9,9.922e-05,2]
[339464715,1727621431522,-250.0,9.946e-05,2]
[339464716,1727621431531,-997.94,9.962e-05,2]
[339464717,1727621431540,-237.28,9.966e-05,2]
[339464718,1727621431549,-1050.0,0.0001,2]
[339464719,1727621431558,-153.71,0.00010001,2]
[339464720,1727621431567,-1086.4331,0.000102,2]
[339464721,1727621431576,-150.0,0.00010438,2]
[339464722,1727621431585,-511.93,0.00010474,2]
[339464723,1727621431594,-300.0,0.00010658,2]
[339464724,1727621431603,-150.0,0.00010882,2]
[339464725,1727621431613,-300.0,0.00010882,2]
[339464726,1727621431622,-292.1155,0.00010883,2]
[339464727,1727621431630,-13268.6891,0.00010883,2]
[339464728,1727621431639,-945.5484,0.00010883,2]
[339464729,1727621431648,-2413.0385,0.00010883,2]
[339464730,1727621431657,-7594.8912,0.00010885,2]
[339464731,1727621431666,-860.4956,0.00010886,2]
[339464732,1727621431675,-1554.5756,0.00010895,2]
[339464733,1727621431684,-2035.2267,0.00010895,2]
[339464734,1727621431693,-175.83709417,0.00010897,2]
[339464735,1727621431702,-1475.3221,0.00010898,2]
[339464736,1727621431711,-12224.2977,0.00010898,2]
[339464737,1727621431720,-946.3744,0.00010898,2]
[339464738,1727621431729,-175.83709415,0.00010899,2]
[339464739,1727621431738,-2872.54244516,0.00010899,2]
[339464740,1727621431747,-2872.54244508,0.00010899,2]
[339464741,1727621431756,-2872.54244508,0.00010899,2]
[339464742,1727621431767,-2872.54244508,0.00010899,2]
[339464743,1727621431776,-2872.54244508,0.00010899,2]
[339464744,1727621431786,-2872.54244508,0.00010899,2]
[339464745,1727621431796,-2872.54244508,0.00010899,2]
[339464746,1727621431805,-2872.54244508,0.00010899,2]
[339464747,1727621431814,-2872.54244508,0.00010899,2]
[339464748,1727621431823,-2279.1079134,0.00010899,2]
[339464749,1727621431832,-2279.1079134,0.000109,2]
[339464750,1727621431842,-175.83709415,0.000109,2]
[339464751,1727621431851,-786.81538742,0.000109,2]
[339464752,1727621431860,-786.8153874,0.000109,2]
[339464753,1727621431870,-786.8153874,0.000109,2]
[339464754,1727621431879,-786.8153874,0.000109,2]
[339464755,1727621431889,-786.8153874,0.000109,2]
[339464756,1727621431898,-786.8153874,0.000109,2]
[339464757,1727621431908,-786.8153874,0.000109,2]
[339464758,1727621431917,-786.8153874,0.000109,2]
[339464759,1727621431927,-2872.54244508,0.000109,2]
[339464760,1727621431936,-200.0,0.00010959,2]
[339464762,1727621431946,-200.0,0.00010959,2]
[339464763,1727621431955,-200.0,0.00010959,2]
[339464764,1727621431965,-159.26,0.00010959,2]
[339464765,1727621431974,-250.0,0.00010959,2]
[339464766,1727621431984,-270.55,0.00010959,2]
[339464767,1727621431994,-170.43,0.00010959,2]
[339464768,1727621432004,-363.46,0.00010973,2]
[339464769,1727621432014,-500.0,0.00010982,2]
[339464770,1727621432023,-500.0,0.00010982,2]
[339464771,1727621432033,-500.0,0.00010982,2]
[339464772,1727621432043,-500.0,0.00010982,2]
[339464773,1727621432053,-631.75903066,0.00010982,2]
[339464774,1727621432062,-500.0,0.00010982,2]
[339464775,1727621432072,-500.0,0.00010982,2]
[339464776,1727621432082,-500.0,0.00010982,2]
[339464777,1727621432091,-500.0,0.00010982,2]
[339464778,1727621432101,-500.0,0.00010982,2]
[339464779,1727621432110,-500.0,0.00010982,2]
[339464780,1727621432119,-500.0,0.00010982,2]
[339464781,1727621432128,-500.0,0.00010982,2]
[339464782,1727621432138,-500.0,0.00010982,2]
[339464783,1727621432147,-500.0,0.00010982,2]
[339464784,1727621432156,-500.0,0.00010982,2]
[339464785,1727621432166,-500.0,0.00010982,2]
[339464786,1727621432175,-500.0,0.00010982,2]
[339464787,1727621432184,-500.0,0.00010982,2]
[339464788,1727621432194,-500.0,0.00010982,2]
[339464789,1727621432203,-905.36,0.00010982,2]
[339464790,1727621432212,-505.48,0.00010982,2]
[339464791,1727621432221,-539.88,0.00010982,2]
[339464792,1727621432230,-500.0,0.00010982,2]
[339464793,1727621432239,-500.0,0.00010982,2]
[339464794,1727621432250,-500.0,0.00010982,2]
[339464795,1727621432259,-500.0,0.00010982,2]
[339464796,1727621432268,-500.0,0.00010982,2]
[339464797,1727621432277,-500.0,0.00010982,2]
[339464798,1727621432286,-500.0,0.00010982,2]
[339464799,1727621432295,-500.0,0.00010982,2]
[339464800,1727621432306,-500.0,0.00010982,2]
[339464801,1727621432315,-500.0,0.00010982,2]
[339464802,1727621432324,-500.0,0.00010982,2]
[339464803,1727621432333,-500.0,0.00010982,2]
[339464804,1727621432342,-500.0,0.00010982,2]
[339464805,1727621432351,-500.0,0.00010982,2]
[339464806,1727621432359,-500.0,0.00010982,2]
[339464807,1727621432591,-500.0,0.00010982,2]
[339464808,1727621432601,-500.0,0.00010982,2]
[339464809,1727621432611,-500.0,0.00010982,2]
[339464810,1727621432621,-500.0,0.00010982,2]
[339464811,1727621432631,-517.0,0.00010982,2]
[339464812,1727621432640,-500.0,0.00010982,2]
[339464813,1727621432650,-500.0,0.00010982,2]
[339464814,1727621432660,-500.0,0.00010982,2]
[339464815,1727621432670,-500.0,0.00010982,2]
[339464816,1727621432680,-500.0,0.00010982,2]
[339464817,1727621432689,-500.0,0.00010982,2]
[339464818,1727621432699,-500.0,0.00010982,2]
[339464819,1727621432708,-500.0,0.00010982,2]
[339464820,1727621432718,-500.0,0.00010982,2]
[339464821,1727621432727,-500.0,0.00010982,2]
[339464822,1727621432736,-500.0,0.00010982,2]
[339464823,1727621432746,-500.0,0.00010982,2]
[339464824,1727621432755,-500.0,0.00010982,2]
[339464825,1727621432765,-500.0,0.00010982,2]
[339464826,1727621432774,-500.0,0.00010982,2]
[339464827,1727621432783,-500.0,0.00010982,2]
[339464828,1727621432792,-500.0,0.00010982,2]
[339464829,1727621432802,-500.0,0.00010982,2]
[339464830,1727621432811,-503.50285786,0.00010982,2]
[339464831,1727621432820,-500.0,0.00010982,2]
[339464832,1727621432830,-500.0,0.00010982,2]
[339464833,1727621432839,-500.0,0.00010982,2]
[339464834,1727621432849,-500.0,0.00010982,2]
[339464835,1727621432858,-500.0,0.00010982,2]
[339464836,1727621432867,-500.0,0.00010982,2]
[339464837,1727621432876,-500.0,0.00010982,2]
[339464838,1727621432886,-500.0,0.00010982,2]
[339464839,1727621432895,-500.0,0.00010982,2]
[339464840,1727621432905,-500.0,0.00010982,2]
[339464841,1727621432915,-500.0,0.00010982,2]
[339464842,1727621432924,-500.0,0.00010982,2]
[339464843,1727621432933,-500.0,0.00010982,2]
[339464844,1727621432943,-503.72137204,0.00010982,2]
[339464845,1727621432953,-500.0,0.00010982,2]
[339464846,1727621432962,-565.38,0.00010982,2]
[339464847,1727621432972,-500.0,0.00010982,2]
[339464848,1727621432981,-500.0,0.00010982,2]
[339464849,1727621432991,-500.0,0.00010982,2]
[339464850,1727621433000,-500.0,0.00010982,2]
[339464851,1727621433009,-500.0,0.00010982,2]
[339464852,1727621433019,-500.0,0.00010982,2]
[339464853,1727621433029,-507.96689957,0.00010982,2]
[339464854,1727621433038,-500.0,0.00010982,2]
[339464855,1727621433047,-500.0,0.00010982,2]
[339464856,1727621433056,-500.0,0.00010982,2]
[339464857,1727621433066,-500.0,0.00010982,2]
[339464858,1727621433075,-1388.32,0.00010982,2]
[339464859,1727621433084,-519.84,0.00010982,2]
[339464860,1727621433094,-500.0,0.00010982,2]
[339464861,1727621433103,-500.0,0.00010982,2]
[339464862,1727621433113,-500.0,0.00010982,2]
[339464863,1727621433122,-500.0,0.00010982,2]
[339464864,1727621433132,-500.0,0.00010982,2]
[339464865,1727621433142,-500.0,0.00010982,2]
[339464866,1727621433151,-500.0,0.00010983,2]
[339464867,1727621433161,-500.0,0.00010983,2]
[339464868,1727621433171,-500.0,0.00010983,2]
[339464869,1727621433180,-500.0,0.00010983,2]
[339464870,1727621433190,-500.0,0.00010983,2]
[339464871,1727621433199,-500.0,0.00010983,2]
[339464872,1727621433208,-500.0,0.00010983,2]
[339464873,1727621433218,-500.0,0.00010983,2]
[339464874,1727621433227,-500.0,0.00010983,2]
[339464875,1727621433236,-500.0,0.00010983,2]
[339464876,1727621433245,-500.0,0.00010983,2]
[339464877,1727621433255,-500.0,0.00010983,2]
[339464878,1727621433263,-500.0,0.00010983,2]
[339464879,1727621433273,-500.0,0.00010983,2]
[339464880,1727621433283,-500.0,0.00010983,2]
[339464881,1727621433293,-500.0,0.00010983,2]
[339464882,1727621433304,-500.0,0.00010983,2]
[339464883,1727621433314,-500.0,0.00010983,2]
[339464884,1727621433323,-500.0,0.00010983,2]
[339464885,1727621433333,-500.0,0.00010983,2]
[339464886,1727621433342,-600.61,0.00010983,2]
[339464887,1727621433352,-500.0,0.00010983,2]
[339464888,1727621433361,-780.18,0.00010983,2]
[339464889,1727621433371,-683.51,0.00010983,2]
[339464890,1727621433381,-500.0,0.00010983,2]
[339464891,1727621433390,-500.0,0.00010983,2]
[339464892,1727621433399,-500.0,0.00010983,2]
[339464893,1727621433409,-500.0,0.00010983,2]
[339464894,1727621433418,-500.0,0.00010983,2]
[339464895,1727621433427,-500.0,0.00010983,2]
[339464896,1727621433436,-500.0,0.00010983,2]
[339464897,1727621433445,-500.0,0.00010983,2]
[339464898,1727621433454,-500.0,0.00010983,2]
[339464899,1727621433463,-500.0,0.00010983,2]
[339464900,1727621433473,-500.0,0.00010983,2]
[339464901,1727621433483,-524.13,0.00010983,2]
[339464902,1727621433492,-500.0,0.00010983,2]
[339464903,1727621433501,-500.0,0.00010983,2]
[339464904,1727621433511,-500.0,0.00010983,2]
[339464905,1727621433520,-500.0,0.00010983,2]
[339464906,1727621433530,-500.0,0.00010983,2]
[339464907,1727621433540,-500.0,0.00010983,2]
[339464908,1727621433549,-500.0,0.00010983,2]
[339464909,1727621433559,-500.0,0.00010983,2]
[339464910,1727621433568,-500.0,0.00010983,2]
[339464911,1727621433577,-500.0,0.00010983,2]
[339464912,1727621433587,-500.0,0.00010983,2]
[339464913,1727621433596,-500.0,0.00010983,2]
[339464914,1727621433605,-500.0,0.00010983,2]
[339464915,1727621433615,-500.0,0.00010983,2]
[339464916,1727621433624,-500.0,0.00010983,2]
[339464917,1727621433633,-500.0,0.00010983,2]
[339464918,1727621433643,-500.0,0.00010983,2]
[339464919,1727621433652,-500.0,0.00010983,2]
[339464920,1727621433661,-612.51,0.00010983,2]
[339464921,1727621433670,-575.22,0.00010983,2]
[339464922,1727621433679,-500.0,0.00010983,2]
[339464923,1727621433689,-500.0,0.00010983,2]
[339464924,1727621433698,-633.68747395,0.00010983,2]
[339464925,1727621433708,-500.0,0.00010983,2]
[339464926,1727621433717,-500.0,0.00010983,2]
[339464927,1727621433726,-500.0,0.00010983,2]
[339464928,1727621433737,-500.0,0.00010983,2]
[339464929,1727621433746,-500.0,0.00010983,2]
[339464930,1727621433756,-500.0,0.00010983,2]
[339464931,1727621433765,-500.0,0.00010983,2]
[339464932,1727621433775,-500.0,0.00010983,2]
[339464933,1727621433784,-500.0,0.00010983,2]
[339464934,1727621433794,-500.0,0.00010983,2]
[339464935,1727621433803,-500.0,0.00010983,2]
[339464936,1727621433813,-500.0,0.00010983,2]
[339464937,1727621433822,-500.0,0.00010983,2]
[339464938,1727621433832,-500.0,0.00010983,2]
[339464939,1727621433841,-800.11,0.00010983,2]
[339464940,1727621433850,-505.54050994,0.00010983,2]
[339464941,1727621433859,-500.0,0.00010983,2]
[339464942,1727621433869,-500.0,0.00010983,2]
[339464943,1727621433879,-500.0,0.00010983,2]
[339464944,1727621433888,-500.0,0.00010983,2]
[339464945,1727621433897,-500.0,0.00010983,2]
[339464946,1727621433906,-500.0,0.00010983,2]
[339464947,1727621433916,-500.0,0.00010983,2]
[339464948,1727621433925,-500.0,0.00010983,2]
[339464949,1727621433935,-500.0,0.00010983,2]
[339464950,1727621433944,-863.02,0.00010983,2]
[339464951,1727621433953,-500.0,0.00010983,2]
[339464952,1727621433963,-500.0,0.00010983,2]
[339464953,1727621433972,-500.0,0.00010983,2]
[339464954,1727621433981,-500.0,0.00010983,2]
[339464955,1727621433991,-500.0,0.00010983,2]
[339464956,1727621434002,-500.0,0.00010983,2]